{"text_format":"2","workbook":"xlsx","n_sheets":1,"sheets":["Sheet1"],"not_rendered":{"charts":0,"images":0,"macros":0,"external_links":0,"defined_names":1,"comments":0,"pivot_tables":0},"unopened":[],"bounds":{"document_bytes":16777216,"sheet_cells":100000,"run_cost":"one","rows_first":2000,"rows_last":500,"rows_between":2000,"halvings":0,"cell_chars":16384,"cell_head_chars":4096},"cells_cut":0,"cells_raw":0,"read":"whole","date_system":"1900"}

{"sheet":"Sheet1","index":0,"n_rows":24,"n_cols":14,"rows_kept":24,"cut":false,"hidden":false,"merged":[]}
[]
[null,"qPCR for testing efficiency of knockdown with dsRNAs"]
[]
[null,"treatments: ","water","dsegfp","dsvATPaseE","dsalas","dsJHBP","dsmesh","SUM"]
[null,"jun2016_target_selection_5dpt",4,4,4,4,4,4,{"$f":"SUM(C5:H5)","v":24}]
[null,"jun2016_mesh_RNAseq_1dpt",null,4,null,null,null,3,{"$f":"SUM(C6:H6)","v":7}]
[null,"jul2016_MeJA_14dpt",null,8,null,8,8,null,24]
[null,"oct2016_2x1ug_8dpt",4,4,null,3,null,null,11]
[null,"dec2016_2x1ug_7dpt",4,4,null,4,4,1,17]
[null,"SUM",{"$f":"SUM(C5:C9)","v":12},{"$f":"SUM(D5:D9)","v":24},4,19,16,8,83]
[]
[null,null,"na kontrolah qPCR za vse gene v poskusu"]
[]
[]
[null,null,"water","dsegfp","dsvATPaseE","dsalas","dsJHBP","dsmesh","SUM"]
[null,"jun2016_target_selection_5dpt",4,4,4,4,4,4,{"$f":"SUM(C16:H16)","v":24}]
[null,"dec2016_2x1ug_7dpt",4,4,null,4,4,null,16]
[null,"SUM",{"$f":"SUM(C16:C17)","v":8},{"$f":"SUM(D16:D17)","v":8},4,8,8,4,40]
[]
[null,null,"vsi vzorci na 18S in RP4 - na robota",{"$nulls":10},"1 plata, 2 amplikona, 40 vzorcev!"]
[]
[null,null,"16  kontrolnih vzorcev na vseh 4 tarčnih amplikonih +"]
[null,null,null,"-- alas in JHBP dodatno 8 vz",null,null,"mix na robota za 24 vz,12 vzorcev na robota, 8 za vsak amplikon na roke?",{"$nulls":6},"1 plata, 2 amplikona, 24 vz."]
[null,null,null,"-- vATPaseE in mesh dodatno 4 vz",null,null,"mix na robota za 20 vz, 12 vzorcev na robota, 4 za vsak amplikon na roke?",{"$nulls":6},"1 plata, 2 amplikona, 20 vz."]